[Event "NJSK 2026 Jeugd C"]
[Site "Helmond, Netherlands"]
[Date "2026.04.28"]
[Round "5.5"]
[White "Uitermark, Imre"]
[Black "Leenen, Boyd"]
[Result "0-1"]
[TimeControl "90min/40moves + 30sec/move"]
[WhiteTitle "-"]
[BlackTitle "-"]
[WhiteFideId "40105199"]
[BlackFideId "1083937"]
[WhiteElo "1957"]
[BlackElo "2205"]

1. e4 {[%clk 01:30:59]} e5 {[%clk 01:30:52]} {[%emt 00:00:08]} 2. Nf3 {[%clk
01:31:25]} {[%emt 00:00:04]} Nc6 {[%clk 01:31:18]} {[%emt 00:00:04]} 3. Bc4
{[%clk 01:31:49]} {[%emt 00:00:06]} Nf6 {[%clk 01:31:42]} {[%emt 00:00:06]} 4.
d3 {[%clk 01:32:15]} {[%emt 00:00:04]} Be7 {[%clk 01:31:33]} {[%emt 00:00:39]}
5. c3 {[%clk 01:31:54]} {[%emt 00:00:51]} d6 {[%clk 01:31:51]} {[%emt
00:00:13]} 6. O-O {[%clk 01:32:15]} {[%emt 00:00:08]} O-O {[%clk 01:32:18]}
{[%emt 00:00:03]} 7. h3 {[%clk 01:32:02]} {[%emt 00:00:42]} Na5 {[%clk
01:32:01]} {[%emt 00:00:47]} 8. Bb5 {[%clk 01:32:26]} {[%emt 00:00:07]} a6
{[%clk 01:32:26]} {[%emt 00:00:05]} 9. Ba4 {[%clk 01:32:52]} {[%emt 00:00:04]}
c5 {[%clk 01:32:52]} {[%emt 00:00:03]} 10. Bc2 {[%clk 01:32:33]} {[%emt
00:00:50]} b5 {[%clk 01:28:42]} {[%emt 00:04:40]} 11. Re1 {[%clk 01:31:40]}
{[%emt 00:01:23]} Qc7 {[%clk 01:27:51]} {[%emt 00:01:21]} 12. Nbd2 {[%clk
01:29:18]} {[%emt 00:02:52]} Nc6 {[%clk 01:24:51]} {[%emt 00:03:30]} 13. Nf1
{[%clk 01:29:00]} {[%emt 00:00:48]} Be6 {[%clk 01:19:31]} {[%emt 00:05:50]} 14.
Qe2 {[%clk 01:24:00]} {[%emt 00:05:29]} h6 {[%clk 01:19:06]} {[%emt 00:00:55]}
15. Ne3 {[%clk 01:22:49]} {[%emt 00:01:42]} Rfe8 {[%clk 01:16:18]} {[%emt
00:03:18]} 16. Bd2 {[%clk 01:18:14]} {[%emt 00:05:05]} Bf8 {[%clk 01:13:06]}
{[%emt 00:03:42]} 17. Nh2 {[%clk 01:01:29]} {[%emt 00:17:14]} Qd7 {[%clk
00:56:40]} {[%emt 00:16:56]} 18. Nhf1 {[%clk 01:00:59]} {[%emt 00:01:00]} d5
{[%clk 00:56:11]} {[%emt 00:00:59]} 19. exd5 {[%clk 01:01:09]} {[%emt
00:00:20]} Nxd5 {[%clk 00:56:39]} {[%emt 00:00:02]} 20. Nxd5 {[%clk 01:01:03]}
{[%emt 00:00:37]} Bxd5 {[%clk 00:56:43]} {[%emt 00:00:25]} 21. Ne3 {[%clk
00:59:31]} {[%emt 00:02:02]} Be6 {[%clk 00:56:58]} {[%emt 00:00:15]} 22. a3
{[%clk 00:42:38]} {[%emt 00:17:23]} Rad8 {[%emt 00:03:26]} 23. Rad1 {[%clk
00:41:54]} f5 {[%emt 00:16:03]} 24. Qh5 {[%clk 00:34:38]} f4 {[%clk 00:45:37]}
{[%emt 00:02:22]} 25. Nf1 {[%clk 00:32:14]} {[%emt 00:02:53]} Bf5 {[%clk
00:45:30]} {[%emt 00:00:38]} 26. Qf3 {[%clk 00:28:58]} {[%emt 00:03:48]} c4
{[%clk 00:44:47]} {[%emt 00:01:13]} 27. Bc1 {[%clk 00:27:35]} {[%emt 00:01:53]}
cxd3 {[%clk 00:44:23]} {[%emt 00:00:54]} 28. Rd2 {[%clk 00:26:16]} {[%emt
00:01:49]} Be7 {[%clk 00:42:22]} {[%emt 00:02:31]} 29. Bxd3 {[%clk 00:23:07]}
{[%emt 00:03:39]} Bxd3 {[%clk 00:42:43]} {[%emt 00:00:09]} 30. Rxd3 {[%clk
00:23:34]} {[%emt 00:00:03]} Qxd3 {[%clk 00:43:06]} {[%emt 00:00:07]} 31. Qxc6
{[%clk 00:24:00]} {[%emt 00:00:03]} Qd6 {[%clk 00:32:11]} {[%emt 00:11:23]} 32.
Qe4 {[%clk 00:20:49]} {[%emt 00:03:44]} Bf8 {[%clk 00:30:20]} {[%emt 00:02:20]}
33. Nd2 {[%clk 00:20:01]} {[%emt 00:01:18]} Qd3 {[%clk 00:29:53]} {[%emt
00:00:59]} 34. Qc6 {[%clk 00:20:09]} {[%emt 00:00:19]} a5 {[%clk 00:29:16]}
{[%emt 00:01:08]} 35. Nf3 {[%clk 00:19:36]} {[%emt 00:01:03]} b4 {[%clk
00:27:16]} {[%emt 00:02:31]} 36. axb4 {[%clk 00:17:44]} {[%emt 00:02:22]} axb4
{[%clk 00:27:16]} {[%emt 00:00:30]} 37. Bxf4 {[%clk 00:17:01]} {[%emt
00:01:12]} Rc8 {[%clk 00:25:50]} {[%emt 00:01:57]} 38. Qa4 {[%clk 00:17:10]}
{[%emt 00:00:21]} e4 {[%clk 00:17:41]} {[%emt 00:08:38]} 39. Rd1 {[%clk
00:09:06]} {[%emt 00:08:34]} Qc4 {[%clk 00:16:54]} {[%emt 00:01:17]} 40. Rd4
{[%clk 00:08:51]} {[%emt 00:00:45]} Qe6 {[%clk 00:16:07]} {[%emt 00:01:16]} 41.
Ne5 {[%clk 00:07:09]} {[%emt 00:02:13]} Qf5 {[%clk 00:15:58]} {[%emt 00:00:40]}
42. Qb3+ {[%clk 00:05:51]} {[%emt 00:01:48]} Kh7 {[%clk 00:16:13]} {[%emt
00:00:15]} 43. Bg3 {[%clk 00:03:26]} {[%emt 00:02:54]} Rxe5 {[%clk 00:16:33]}
{[%emt 00:00:10]} 44. Bxe5 {[%clk 00:03:54]} {[%emt 00:00:01]} Qxe5 {[%clk
00:17:02]} {[%emt 00:00:02]} 45. Qc2 {[%clk 00:04:02]} {[%emt 00:00:22]} Qxd4
{[%clk 00:16:58]} {[%emt 00:00:35]} 0-1

[Event "NJSK 2026 Jeugd C"]
[Site "Helmond, Netherlands"]
[Date "2026.04.28"]
[Round "5.6"]
[White "Gupta, Akul"]
[Black "Omnes, Tiago"]
[Result "1/2-1/2"]
[TimeControl "90min/40moves + 30sec/move"]
[WhiteTitle "-"]
[BlackTitle "-"]
[WhiteFideId "1084194"]
[BlackFideId "1091867"]
[WhiteElo "2017"]
[BlackElo "1990"]

1. d4 {[%clk 01:30:47]} {[%emt 00:00:09]} Nf6 {[%clk 01:30:53]} {[%emt
00:00:08]} 2. Nc3 {[%clk 01:30:47]} {[%emt 00:00:30]} d5 {[%clk 01:31:20]}
{[%emt 00:00:04]} 3. Bf4 {[%clk 01:30:59]} {[%emt 00:00:18]} c5 {[%clk
01:31:20]} {[%emt 00:00:30]} 4. e4 {[%clk 01:31:19]} {[%emt 00:00:09]} Nxe4
{[%clk 01:31:42]} {[%emt 00:00:09]} 5. Nxe4 {[%clk 01:31:43]} {[%emt 00:00:07]}
dxe4 {[%clk 01:32:05]} {[%emt 00:00:07]} 6. dxc5 {[%clk 01:32:09]} {[%emt
00:00:04]} Qa5+ {[%clk 01:32:28]} {[%emt 00:00:06]} 7. c3 {[%clk 01:32:33]}
{[%emt 00:00:06]} Qxc5 {[%clk 01:32:50]} {[%emt 00:00:08]} 8. Qa4+ {[%clk
01:32:59]} {[%emt 00:00:05]} Nc6 {[%clk 01:33:08]} {[%emt 00:00:11]} 9. Qxe4
{[%clk 01:33:23]} {[%emt 00:00:06]} g6 {[%clk 01:33:01]} {[%emt 00:00:36]} 10.
Nf3 {[%clk 01:32:59]} {[%emt 00:00:55]} Bg7 {[%clk 01:32:53]} {[%emt 00:00:37]}
11. Qe3 {[%clk 01:29:55]} {[%emt 00:03:34]} Qxe3+ {[%clk 01:31:05]} {[%emt
00:02:19]} 12. Bxe3 {[%clk 01:29:59]} {[%emt 00:00:26]} O-O {[%clk 01:30:27]}
{[%emt 00:01:08]} 13. Bb5 {[%clk 01:28:52]} {[%emt 00:01:36]} Bd7 {[%clk
01:26:51]} {[%emt 00:04:06]} 14. O-O {[%clk 01:20:35]} {[%emt 00:08:48]} Rfd8
{[%clk 01:13:09]} {[%emt 00:14:12]} 15. Rad1 {[%clk 01:17:33]} {[%emt
00:03:31]} Be6 {[%clk 00:55:34]} {[%emt 00:18:05]} 16. Bxc6 {[%clk 01:10:59]}
{[%emt 00:07:05]} Rxd1 {[%clk 00:51:54]} {[%emt 00:04:10]} 17. Rxd1 {[%clk
01:10:56]} {[%emt 00:00:33]} bxc6 {[%clk 00:52:23]} {[%emt 00:00:02]} 18. Nd4
{[%clk 00:58:19]} {[%emt 00:13:06]} Bxd4 {[%clk 00:43:16]} {[%emt 00:09:37]}
1/2-1/2

[Event "NJSK 2026 Jeugd C"]
[Site "Helmond, Netherlands"]
[Date "2026.04.28"]
[Round "5.7"]
[White "Huang, Ziyang"]
[Black "Sosef, Noah"]
[Result "0-1"]
[TimeControl "90min/40moves + 30sec/move"]
[WhiteTitle "-"]
[BlackTitle "-"]
[WhiteFideId "40105288"]
[BlackFideId "40107060"]
[WhiteElo "1721"]
[BlackElo "2012"]

1. e4 {[%clk 01:30:58]} {[%emt 00:00:01]} c6 {[%clk 01:30:53]} {[%emt
00:00:07]} 2. d4 {[%clk 01:31:24]} {[%emt 00:00:04]} d5 {[%clk 01:31:20]}
{[%emt 00:00:04]} 3. e5 {[%clk 01:31:50]} {[%emt 00:00:03]} c5 {[%clk
01:31:46]} {[%emt 00:00:04]} 4. dxc5 {[%clk 01:32:15]} {[%emt 00:00:05]} e6
{[%clk 01:32:11]} {[%emt 00:00:05]} 5. a3 {[%clk 01:32:39]} {[%emt 00:00:06]}
Nc6 {[%clk 01:25:23]} {[%emt 00:07:19]} 6. Nf3 {[%clk 01:29:57]} {[%emt
00:03:11]} Bxc5 {[%clk 01:24:59]} {[%emt 00:00:54]} 7. b4 {[%clk 01:30:14]}
{[%emt 00:00:13]} Bb6 {[%clk 01:25:02]} {[%emt 00:00:27]} 8. Bb2 {[%clk
01:30:31]} {[%emt 00:00:13]} Nge7 {[%clk 01:05:52]} {[%emt 00:19:40]} 9. Bd3
{[%clk 01:29:50]} {[%emt 00:01:10]} Ng6 {[%clk 01:00:25]} {[%emt 00:05:58]} 10.
O-O {[%clk 01:27:13]} {[%emt 00:03:06]} Nf4 {[%clk 00:53:03]} {[%emt 00:07:53]}
11. Re1 {[%clk 01:24:54]} {[%emt 00:02:35]} Nxd3 {[%clk 00:40:24]} {[%emt
00:13:23]} 12. Qxd3 {[%clk 01:24:34]} {[%emt 00:00:50]} O-O {[%clk 00:39:58]}
{[%emt 00:00:57]} 13. Nbd2 {[%clk 01:18:24]} {[%emt 00:06:38]} a5 {[%clk
00:37:31]} {[%emt 00:02:58]} 14. b5 {[%clk 01:17:05]} {[%emt 00:01:50]} Nb8
{[%clk 00:37:26]} {[%emt 00:00:34]} 15. c4 {[%clk 01:14:24]} {[%emt 00:03:10]}
Nd7 {[%clk 00:35:11]} {[%emt 00:02:45]} 16. a4 {[%clk 01:05:56]} {[%emt
00:08:59]} Nc5 {[%clk 00:29:32]} {[%emt 00:06:10]} 17. Qc2 {[%clk 01:06:08]}
{[%emt 00:00:17]} Bd7 {[%clk 00:26:28]} {[%emt 00:03:34]} 18. Bd4 {[%clk
00:53:05]} {[%emt 00:13:33]} Rc8 {[%clk 00:23:09]} {[%emt 00:03:49]} 19. Bxc5
{[%clk 00:51:03]} {[%emt 00:02:32]} Bxc5 {[%clk 00:22:23]} {[%emt 00:01:16]} 20.
Qd3 {[%clk 00:48:14]} {[%emt 00:03:18]} Be8 {[%clk 00:10:45]} {[%emt 00:12:11]}
21. Nb3 {[%clk 00:46:02]} {[%emt 00:02:41]} Bb4 {[%clk 00:05:33]} {[%emt
00:05:43]} 22. Red1 {[%clk 00:45:43]} {[%emt 00:00:49]} b6 {[%clk 00:02:21]}
{[%emt 00:03:42]} 23. cxd5 {[%clk 00:45:46]} {[%emt 00:00:26]} Rc3 {[%clk
00:02:41]} {[%emt 00:00:11]} 24. Qb1 {[%clk 00:45:10]} {[%emt 00:01:06]} exd5
{[%clk 00:02:55]} {[%emt 00:00:16]} 25. Rc1 {[%clk 00:44:53]} {[%emt 00:00:47]}
Bd7 {[%clk 00:02:25]} {[%emt 00:01:00]} 26. Rxc3 {[%clk 00:42:17]} {[%emt
00:03:06]} Bxc3 {[%clk 00:02:53]} {[%emt 00:00:02]} 27. Ra2 {[%clk 00:42:34]}
{[%emt 00:00:13]} h6 {[%clk 00:02:19]} {[%emt 00:01:05]} 28. Nbd4 {[%clk
00:41:36]} {[%emt 00:01:26]} Bxd4 {[%clk 00:02:26]} {[%emt 00:00:23]} 29. Nxd4
{[%clk 00:41:51]} {[%emt 00:00:15]} Qg5 {[%clk 00:02:42]} {[%emt 00:00:15]} 30.
Nf3 {[%clk 00:41:09]} {[%emt 00:01:11]} Qf5 {[%clk 00:02:57]} {[%emt 00:00:16]}
31. Qxf5 {[%clk 00:38:58]} {[%emt 00:02:40]} Bxf5 {[%clk 00:03:26]} {[%emt
00:00:02]} 32. Rd2 {[%clk 00:38:54]} {[%emt 00:00:34]} Rc8 {[%clk 00:03:32]}
{[%emt 00:00:25]} 33. h3 {[%clk 00:39:07]} {[%emt 00:00:16]} Be6 {[%clk
00:03:40]} {[%emt 00:00:23]} 34. Nd4 {[%clk 00:37:00]} {[%emt 00:02:36]} Rc4
{[%clk 00:03:53]} {[%emt 00:00:16]} 35. Nc6 {[%clk 00:37:25]} {[%emt 00:00:06]}
Rxa4 {[%clk 00:03:24]} {[%emt 00:00:59]} 36. Ne7+ {[%clk 00:37:48]} {[%emt
00:00:06]} Kf8 {[%clk 00:03:40]} {[%emt 00:00:15]} 37. Nxd5 {[%clk 00:38:15]}
{[%emt 00:00:03]} Bxd5 {[%clk 00:03:47]} {[%emt 00:00:23]} 38. Rxd5 {[%clk
00:38:32]} {[%emt 00:00:13]} Rb4 {[%clk 00:04:07]} {[%emt 00:00:10]} 39. Kh2
{[%clk 00:37:18]} {[%emt 00:01:42]} a4 {[%clk 00:04:10]} {[%emt 00:00:28]} 40.
f3 {[%clk 00:36:16]} {[%emt 00:01:32]} Ke7 {[%clk 00:04:18]} {[%emt 00:00:23]}
41. Kg3 {[%clk 00:36:07]} {[%emt 00:00:39]} g5 {[%clk 00:04:06]} {[%emt
00:00:42]} 42. Kh2 {[%clk 00:33:07]} {[%emt 00:03:29]} a3 {[%clk 00:04:31]}
{[%emt 00:00:06]} 43. Rd3 {[%clk 00:32:46]} {[%emt 00:00:51]} Ra4 {[%clk
00:04:55]} {[%emt 00:00:06]} 44. Rd1 {[%clk 00:32:29]} {[%emt 00:00:46]} a2
{[%clk 00:05:21]} {[%emt 00:00:05]} 45. Ra1 {[%clk 00:32:54]} {[%emt 00:00:05]}
Ke6 {[%clk 00:05:45]} {[%emt 00:00:06]} 46. g4 {[%clk 00:32:46]} {[%emt
00:00:37]} Kxe5 {[%clk 00:06:09]} {[%emt 00:00:07]} 47. Kg3 {[%clk 00:33:12]}
{[%emt 00:00:04]} Kd5 {[%clk 00:06:00]} {[%emt 00:00:39]} 48. h4 {[%clk
00:33:08]} {[%emt 00:00:33]} Kc5 {[%clk 00:06:11]} {[%emt 00:00:19]} 49. f4
{[%clk 00:33:17]} {[%emt 00:00:22]} Ra3+ {[%clk 00:06:28]} {[%emt 00:00:13]} 50.
Kf2 {[%clk 00:33:31]} {[%emt 00:00:16]} gxh4 {[%clk 00:06:44]} {[%emt
00:00:14]} 51. g5 {[%clk 00:33:29]} {[%emt 00:00:31]} hxg5 {[%clk 00:07:08]}
{[%emt 00:00:06]} 52. f5 {[%clk 00:33:20]} {[%emt 00:00:40]} Kxb5 {[%clk
00:07:19]} {[%emt 00:00:19]} 53. f6 {[%clk 00:33:40]} {[%emt 00:00:10]} Kc4
{[%clk 00:07:25]} {[%emt 00:00:24]} 54. Kg2 {[%clk 00:33:38]} {[%emt 00:00:31]}
Kb3 {[%clk 00:07:44]} {[%emt 00:00:11]} 55. Kh2 {[%clk 00:33:10]} {[%emt
00:00:58]} Kb2 {[%clk 00:08:07]} {[%emt 00:00:07]} 56. Rg1 {[%clk 00:33:33]}
{[%emt 00:00:07]} a1=Q {[%clk 00:08:01]} {[%emt 00:00:37]} 57. Rg2+ {[%clk
00:33:59]} {[%emt 00:00:04]} Kb3 {[%clk 00:08:23]} {[%emt 00:00:07]} 58. Rf2
{[%clk 00:34:15]} {[%emt 00:00:14]} Ra2 {[%clk 00:08:43]} {[%emt 00:00:11]} 0-1

[Event "NJSK 2026 Jeugd C"]
[Site "Helmond, Netherlands"]
[Date "2026.04.28"]
[Round "5.8"]
[White "Suthan, Aadvik"]
[Black "Zhang, Xiheng"]
[Result "0-1"]
[TimeControl "90min/40moves + 30sec/move"]
[WhiteTitle "-"]
[BlackTitle "-"]
[WhiteFideId "1095765"]
[BlackFideId "40102386"]
[WhiteElo "1822"]
[BlackElo "2135"]

1. e4 {[%clk 01:30:58]} {[%emt 00:00:02]} c5 {[%clk 01:30:58]} {[%emt
00:00:03]} 2. Nf3 {[%clk 01:31:04]} {[%emt 00:00:20]} e6 {[%clk 01:31:25]}
{[%emt 00:00:05]} 3. d4 {[%clk 01:31:14]} {[%emt 00:00:20]} cxd4 {[%clk
01:31:50]} {[%emt 00:00:05]} 4. Nxd4 {[%clk 01:31:15]} {[%emt 00:00:27]} Nf6
{[%clk 01:32:14]} {[%emt 00:00:08]} 5. Nc3 {[%clk 01:31:07]} {[%emt 00:00:36]}
Nc6 {[%clk 01:32:40]} {[%emt 00:00:05]} 6. Nxc6 {[%clk 01:31:05]} {[%emt
00:00:31]} bxc6 {[%clk 01:33:07]} {[%emt 00:00:05]} 7. e5 {[%clk 01:31:17]}
{[%emt 00:00:17]} Nd5 {[%clk 01:33:33]} {[%emt 00:00:04]} 8. Ne4 {[%clk
01:31:31]} {[%emt 00:00:15]} Qc7 {[%clk 01:34:00]} {[%emt 00:00:05]} 9. f4
{[%clk 01:31:33]} {[%emt 00:00:26]} Qb6 {[%clk 01:34:27]} {[%emt 00:00:05]} 10.
a3 {[%clk 01:31:29]} {[%emt 00:00:32]} Ba6 {[%clk 01:32:39]} {[%emt 00:02:19]}
11. Bxa6 {[%clk 01:23:04]} {[%emt 00:08:56]} Qxa6 {[%clk 01:33:03]} {[%emt
00:00:06]} 12. Qd3 {[%clk 01:22:36]} {[%emt 00:00:56]} Qxd3 {[%clk 01:30:35]}
{[%emt 00:02:59]} 13. cxd3 {[%clk 01:22:46]} {[%emt 00:00:19]} Be7 {[%clk
01:24:02]} {[%emt 00:07:04]} 14. Bd2 {[%clk 01:17:22]} {[%emt 00:05:54]} Rb8
{[%clk 01:19:12]} {[%emt 00:05:21]} 15. b4 {[%clk 01:15:18]} {[%emt 00:02:32]}
O-O {[%clk 01:16:40]} {[%emt 00:03:04]} 16. O-O {[%clk 01:14:15]} {[%emt
00:01:31]} f6 {[%clk 01:09:12]} {[%emt 00:07:59]} 17. d4 {[%clk 01:06:32]}
{[%emt 00:08:14]} Rf7 {[%clk 00:46:55]} {[%emt 00:22:47]} 18. g3 {[%clk
00:54:10]} {[%emt 00:12:45]} h6 {[%clk 00:41:31]} {[%emt 00:06:01]} 19. Kg2
{[%clk 00:49:03]} {[%emt 00:05:35]} f5 {[%clk 00:39:25]} {[%emt 00:02:38]} 20.
Nc5 {[%clk 00:41:40]} {[%emt 00:07:53]} Bxc5 {[%clk 00:28:47]} {[%emt
00:11:08]} 21. dxc5 {[%clk 00:41:37]} {[%emt 00:00:31]} Rff8 {[%clk 00:27:41]}
{[%emt 00:01:40]} 22. Rab1 {[%clk 00:36:33]} {[%emt 00:05:31]} Rb7 {[%clk
00:25:53]} {[%emt 00:02:20]} 23. Rfc1 {[%clk 00:29:20]} {[%emt 00:07:43]} Rfb8
{[%clk 00:24:54]} {[%emt 00:01:29]} 24. Rc4 {[%clk 00:24:59]} {[%emt 00:04:50]}
a5 {[%clk 00:23:31]} {[%emt 00:01:55]} 25. Rd4 {[%clk 00:22:22]} {[%emt
00:03:06]} axb4 {[%clk 00:18:12]} {[%emt 00:05:50]} 26. Bxb4 {[%clk 00:19:38]}
{[%emt 00:03:13]} Ne3+ {[%clk 00:16:47]} {[%emt 00:01:55]} 27. Kf3 {[%clk
00:14:06]} {[%emt 00:06:02]} Nc2 {[%clk 00:16:11]} {[%emt 00:01:07]} 28. Rbd1
{[%clk 00:13:20]} {[%emt 00:01:16]} Nxd4+ {[%clk 00:16:14]} {[%emt 00:00:26]}
29. Rxd4 {[%clk 00:13:42]} {[%emt 00:00:08]} Kf7 {[%clk 00:14:19]} {[%emt
00:02:25]} 30. h4 {[%clk 00:13:52]} {[%emt 00:00:19]} g5 {[%clk 00:10:59]}
{[%emt 00:03:51]} 31. fxg5 {[%clk 00:13:28]} {[%emt 00:00:54]} hxg5 {[%clk
00:11:26]} {[%emt 00:00:04]} 32. h5 {[%clk 00:10:59]} {[%emt 00:02:59]} Kg7
{[%clk 00:09:53]} {[%emt 00:02:02]} 33. g4 {[%clk 00:10:47]} {[%emt 00:00:42]}
Rf8 {[%clk 00:10:15]} {[%emt 00:00:08]} 34. Rd6 {[%clk 00:10:00]} {[%emt
00:01:17]} Kh6 {[%clk 00:09:29]} {[%emt 00:01:17]} 35. Rd4 {[%clk 00:10:04]}
{[%emt 00:00:26]} fxg4+ {[%clk 00:08:22]} {[%emt 00:01:36]} 36. Kxg4 {[%clk
00:10:22]} {[%emt 00:00:12]} Rf5 {[%clk 00:08:45]} {[%emt 00:00:07]} 37. Re4
{[%clk 00:10:21]} {[%emt 00:00:31]} Ra7 {[%clk 00:07:14]} {[%emt 00:02:02]} 38.
Kg3 {[%clk 00:07:21]} {[%emt 00:03:27]} Kxh5 {[%clk 00:07:28]} {[%emt
00:00:19]} 39. Re1 {[%clk 00:07:08]} {[%emt 00:00:41]} Rf4 {[%clk 00:07:04]}
{[%emt 00:00:56]} 40. Rh1+ {[%clk 00:07:23]} {[%emt 00:00:14]} Rh4 {[%clk
00:07:10]} {[%emt 00:00:24]} 41. Rf1 {[%clk 00:07:43]} {[%emt 00:00:10]} Re4
{[%clk 00:07:33]} {[%emt 00:00:07]} 42. Rh1+ {[%clk 00:07:21]} {[%emt
00:00:51]} Kg6 {[%clk 00:07:58]} {[%emt 00:00:06]} 43. Rf1 {[%clk 00:07:41]}
{[%emt 00:00:09]} Rxe5 {[%clk 00:08:22]} {[%emt 00:00:07]} 44. Rf3 {[%clk
00:07:42]} {[%emt 00:00:29]} Ra8 {[%clk 00:06:50]} {[%emt 00:02:03]} 45. Rd3
{[%clk 00:08:01]} {[%emt 00:00:11]} Rd5 {[%clk 00:07:14]} {[%emt 00:00:05]} 46.
Rf3 {[%clk 00:08:21]} {[%emt 00:00:10]} Rh8 {[%clk 00:07:14]} {[%emt 00:00:31]}
47. Bc3 {[%clk 00:07:44]} {[%emt 00:01:04]} e5 {[%clk 00:07:26]} {[%emt
00:00:20]} 48. Re3 {[%clk 00:07:51]} {[%emt 00:00:24]} Rxc5 {[%clk 00:07:49]}
{[%emt 00:00:07]} 49. Bxe5 {[%clk 00:07:17]} {[%emt 00:01:02]} Re8 {[%clk
00:08:05]} {[%emt 00:00:15]} 50. Bd4 {[%clk 00:07:27]} {[%emt 00:00:19]} Rxe3+
{[%clk 00:08:34]} {[%emt 00:00:03]} 51. Bxe3 {[%clk 00:07:45]} {[%emt
00:00:11]} Rc3 {[%clk 00:09:03]} {[%emt 00:00:01]} 52. Kf2 {[%clk 00:07:45]}
{[%emt 00:00:29]} Rxa3 {[%clk 00:09:29]} {[%emt 00:00:05]} 53. Kf3 {[%clk
00:08:03]} {[%emt 00:00:12]} Kf5 {[%clk 00:09:53]} {[%emt 00:00:07]} 54. Kf2
{[%clk 00:08:25]} {[%emt 00:00:07]} Rxe3 {[%clk 00:10:14]} {[%emt 00:00:09]} 55.
Kxe3 {[%clk 00:08:40]} {[%emt 00:00:15]} c5 {[%clk 00:10:39]} {[%emt 00:00:06]}
56. Kd3 {[%clk 00:09:03]} {[%emt 00:00:07]} d5 {[%clk 00:11:05]} {[%emt
00:00:04]} 57. Kc3 {[%clk 00:09:13]} {[%emt 00:00:18]} Ke4 {[%clk 00:11:33]}
{[%emt 00:00:04]} 58. Kb3 {[%clk 00:09:24]} {[%emt 00:00:17]} Kd3 {[%clk
00:12:00]} {[%emt 00:00:04]} 59. Ka4 {[%clk 00:09:45]} {[%emt 00:00:10]} Kc4
{[%clk 00:12:25]} {[%emt 00:00:05]} 60. Ka5 {[%clk 00:10:06]} {[%emt 00:00:09]}
d4 {[%clk 00:12:53]} {[%emt 00:00:01]} 61. Kb6 {[%clk 00:10:25]} {[%emt
00:00:11]} d3 {[%clk 00:13:21]} {[%emt 00:00:01]} 62. Kc6 {[%clk 00:10:43]}
{[%emt 00:00:13]} d2 {[%clk 00:13:48]} {[%emt 00:00:03]} 63. Kb6 {[%clk
00:11:02]} {[%emt 00:00:11]} d1=Q {[%emt 00:00:05]} 64. Kc6 {[%clk 00:11:21]}
{[%emt 00:00:11]} Qd5+ {[%clk 00:14:41]} {[%emt 00:00:03]} 65. Kb6 {[%clk
00:11:34]} {[%emt 00:00:16]} Qd7 {[%clk 00:15:02]} {[%emt 00:00:07]} 66. Ka6
{[%clk 00:11:50]} {[%emt 00:00:17]} Qb5+ {[%clk 00:15:28]} {[%emt 00:00:04]} 67.
Ka7 {[%clk 00:12:11]} {[%emt 00:00:09]} Kd5 {[%clk 00:15:54]} {[%emt 00:00:03]}
68. Ka8 {[%clk 00:12:31]} {[%emt 00:00:10]} Kc6 {[%clk 00:16:22]} {[%emt
00:00:03]} 69. Ka7 {[%clk 00:12:50]} {[%emt 00:00:11]} Qb7# {[%clk 00:16:46]}
{[%emt 00:00:05]} 0-1